bitfinex-derivatives/quotes_ETHF0:USTF0_20220106
["timestamp","ask_amount","ask_price","bid_price","bid_amount"]
[1641434028986,4.00958,3505.8,3504.0,7.47179]
[1641434028987,4.00958,3505.8,3505.6,0.85576095]
[1641434029187,2.00479,3505.8,3505.6,0.85576095]
[1641434029886,1.14914089,3505.8,3505.6,0.85576095]
[1641434030087,1.5,3506.7,3505.6,0.85576095]
[1641434030290,1.5,3505.7,3504.8,1.02715823]
[1641434030588,1.5,3505.2,3504.0,5.467]
[1641434030787,0.7838,3505.7,3504.0,5.467]
[1641434030987,2.2838,3505.7,3504.0,5.467]
[1641434031187,0.7838,3505.7,3504.2,4.0]
[1641434031387,1.5,3506.7,3504.8,4.0]
[1641434031686,1.5,3506.7,3504.4,0.6162]
[1641434031887,2.00479,3506.3,3505.5,2.00479]
[1641434033492,1.5,3506.8,3505.6,4.0]
[1641434033690,1.5,3506.9,3505.6,4.0]
[1641434033892,1.5,3506.9,3506.2,2.00479]
[1641434034190,2.00479,3507.0,3506.2,6.00479]
[1641434034391,0.89292771,3507.7,3506.2,6.00479]
[1641434035093,1.5,3507.9,3506.2,6.00479]
[1641434035790,1.5,3507.9,3507.1,2.00479]
[1641434035991,0.132394,3507.8,3507.1,2.00479]
[1641434036391,2.00479,3507.9,3507.1,2.00479]
[1641434036592,0.132394,3507.8,3507.1,2.00479]
[1641434038395,1.5,3507.6,3507.1,2.00479]
[1641434038595,1.632394,3507.6,3507.1,2.00479]
[1641434038797,0.132394,3507.6,3507.1,2.00479]
[1641434038994,0.132394,3507.6,3506.6,1.02661318]
[1641434039196,1.632394,3507.6,3506.6,1.02661318]
[1641434039495,1.632394,3507.6,3507.2,1.42488911]
[1641434039695,0.132394,3507.6,3506.6,1.02661318]
[1641434039896,1.5,3507.5,3507.2,1.42488911]
[1641434040101,0.132394,3507.7,3507.2,1.66189934]
[1641434040296,1.5,3508.3,3507.8,1.66161606]
[1641434040499,2.39292771,3508.3,3507.8,1.66161606]
[1641434040701,2.52532171,3508.3,3507.8,1.15147258]
[1641434040898,2.52532171,3508.3,3507.1,1.99431703]
[1641434041098,1.5,3507.8,3507.1,1.99431703]
[1641434041299,1.5,3507.3,3507.1,1.99431703]
[1641434041599,1.5,3507.3,3506.2,2.00479]
[1641434041600,0.229991,3507.2,3506.2,2.00479]
[1641434041999,0.229991,3507.2,3505.7,2.11002033]
[1641434042000,1.5,3506.7,3505.7,2.11002033]
[1641434042400,2.00479,3506.9,3505.7,2.11002033]
[1641434042602,1.5,3506.3,3505.7,2.11002033]
[1641434042801,1.632394,3506.3,3505.7,2.11002033]
[1641434043004,0.132394,3506.3,3505.7,2.11002033]
[1641434043204,2.00479,3506.9,3505.7,2.11002033]
[1641434043405,1.5,3505.8,3504.1,31.8189]
[1641434043602,0.7884,3505.8,3502.4,5.80208906]
[1641434043804,1.5,3505.5,3505.4,1.42554317]
[1641434044004,5.739571,3505.5,3505.4,1.42554317]
[1641434044304,5.739571,3505.5,3503.9,2.00479]
[1641434044503,4.239571,3505.5,3503.9,2.00479]
[1641434044704,5.739571,3505.5,3502.3,35.26757067]
[1641434044907,4.239571,3505.5,3505.0,1.42571389]
[1641434045107,1.5,3505.1,3505.0,1.42571389]
[1641434045305,1.729991,3505.1,3504.5,1.42588059]
[1641434045508,1.5,3504.6,3504.5,1.42588059]
[1641434045804,1.5,3504.6,3502.7,31.5104]
[1641434046004,5.00479,3504.1,3501.8,5.467]
[1641434046206,1.5,3502.9,3502.1,0.85661452]
[1641434046408,0.6392,3502.9,3502.8,1.42653149]
[1641434046606,0.869191,3502.9,3502.8,1.42653149]
[1641434047007,0.6392,3502.9,3502.8,1.42653149]
[1641434047406,0.869191,3502.9,3502.8,1.42653149]
[1641434048005,2.873981,3502.9,3502.8,1.42653149]
[1641434048405,2.873981,3502.9,3501.8,5.467]
[1641434048406,4.506375,3502.9,3501.8,5.467]
[1641434048606,3.006375,3502.9,3501.8,5.467]
[1641434048807,3.006375,3502.9,3502.4,1.42674316]
[1641434049008,4.506375,3502.9,3502.4,1.42674316]
[1641434049407,3.006375,3502.9,3502.4,1.42674316]
[1641434049607,1.5,3502.5,3502.4,1.42674316]
[1641434049807,1.862385,3502.5,3502.4,1.42674316]
[1641434050008,3.867175,3502.5,3502.4,1.42674316]
[1641434050209,3.867175,3502.5,3501.8,1.42698951]
[1641434050409,3.867175,3502.5,3501.4,1.02815078]
[1641434050812,2.367175,3502.5,3501.4,1.02815078]
[1641434051010,1.5,3502.2,3501.6,1.42706486]
[1641434051210,1.5,3502.0,3501.6,1.42706486]
[1641434051413,2.00479,3502.5,3501.9,1.42687345]
[1641434051612,2.00479,3502.9,3502.4,1.42632598]
[1641434051811,2.00479,3502.9,3502.2,0.91634304]
[1641434052012,2.00479,3502.9,3502.3,2.00479]
[1641434052013,1.04162718,3502.9,3502.3,2.00479]
[1641434052513,1.04162718,3502.9,3502.3,2.97313232]
[1641434052711,1.5,3503.7,3502.8,1.42634836]
[1641434052912,0.89292771,3504.6,3502.8,1.42634836]
[1641434053112,1.5,3504.3,3502.8,0.6274]
[1641434053518,1.5,3504.3,3502.9,0.96818235]
[1641434053817,1.5,3504.5,3502.9,5.53497835]
[1641434054017,2.00479,3504.3,3503.5,2.00479]
[1641434054822,2.00479,3504.6,3503.5,6.00479]
[1641434055021,0.7976,3509.9,3504.1,4.0]
[1641434055221,1.5,3506.1,3504.1,4.0]
[1641434055422,0.91955378,3505.9,3504.2,4.565102]
[1641434055825,0.91955378,3505.9,3504.9,4.0]
[1641434056024,0.91955378,3505.9,3505.2,2.00479]
[1641434056425,30.5976,3506.6,3505.2,2.00479]
[1641434056426,1.75670172,3506.7,3505.8,4.0]
[1641434056626,1.75670172,3506.7,3505.9,1.80368823]
[1641434056827,1.75670172,3506.7,3505.9,6.36696723]
[1641434057226,1.5,3506.5,3505.9,6.36696723]
[1641434057428,1.5,3506.0,3505.9,6.36696723]
[1641434057627,2.320991,3506.0,3505.9,1.43390648]
[1641434057827,2.453385,3506.0,3505.9,1.43390648]
[1641434058028,4.458175,3506.0,3505.9,1.43390648]
[1641434058434,5.958175,3506.0,3504.6,2.00479]
[1641434058629,1.5,3504.8,3504.6,2.00479]
[1641434058828,0.132394,3504.9,3504.6,2.00479]
[1641434059028,1.5,3505.3,3504.8,1.4256143]
[1641434059229,1.632394,3505.3,3504.6,2.00479]
[1641434059631,2.00479,3506.0,3505.2,1.42546798]
[1641434059831,1.632394,3505.9,3504.6,2.00479]
[1641434060133,1.632394,3505.9,3505.7,1.42541109]
[1641434060330,0.229991,3505.8,3505.7,1.42541109]
[1641434060730,2.00479,3506.0,3505.7,1.42541109]
[1641434060937,0.78012338,3506.0,3505.7,1.42541109]
[1641434061233,0.78012338,3506.0,3505.1,5.47188542]
[1641434061431,0.78012338,3506.0,3505.9,1.42508404]
[1641434061730,2.51011438,3506.0,3504.6,2.00479]
[1641434061930,1.5,3505.2,3504.6,2.00479]
[1641434062129,2.00479,3505.1,3504.6,0.132394]
[1641434064231,2.00479,3505.1,3505.0,1.42541718]
[1641434065131,0.78012338,3506.0,3505.0,1.42541718]
[1641434065333,0.78012338,3506.0,3505.1,4.0]
[1641434065533,1.5,3506.7,3505.2,0.132394]
[1641434065734,1.5,3507.4,3506.5,1.42508404]
[1641434065936,1.5,3506.6,3505.2,4.564191]
[1641434066134,1.5,3506.6,3505.1,4.8429]
[1641434066135,2.00479,3506.7,3505.9,2.00479]
[1641434066333,1.5,3506.2,3506.0,0.132394]
[1641434066533,1.5,3506.2,3506.1,1.4249622]
[1641434067034,1.5,3506.2,3506.0,1.07530407]
[1641434068434,0.229991,3506.1,3506.0,1.07530407]
[1641434068637,0.229991,3506.1,3506.0,2.50050185]
[1641434068935,0.229991,3506.1,3506.0,1.07530407]
[1641434069535,2.00479,3506.7,3506.0,1.07530407]
[1641434069735,2.00479,3506.7,3506.0,1.20769807]
[1641434069936,1.5,3507.3,3506.5,0.85555132]
[1641434070135,1.22972838,3507.3,3507.0,2.00479]
[1641434070335,1.5,3507.1,3507.0,2.00479]
[1641434070936,1.22972838,3507.3,3507.0,2.00479]
[1641434071136,0.229991,3507.2,3507.0,2.00479]
[1641434071536,2.00479,3507.9,3507.0,2.00479]
[1641434071737,1.5,3507.1,3507.0,2.00479]
[1641434071936,1.5,3507.1,3507.0,4.28497094]
[1641434072137,1.5,3507.6,3507.0,4.28480653]
[1641434072337,1.5,3507.8,3507.5,0.85530056]
[1641434072938,1.5,3507.8,3507.7,1.424402]
[1641434073538,1.5,3507.8,3507.5,0.85530056]
[1641434073738,1.5,3507.8,3507.6,1.20054382]
[1641434074140,1.5,3507.8,3507.7,3.429192]
[1641434074439,1.5,3507.8,3507.6,1.20054382]
[1641434074639,0.42572838,3508.9,3508.6,0.85503905]
[1641434074841,0.42572838,3508.9,3508.6,1.49153905]
[1641434075040,1.5,3508.8,3508.6,1.49153905]
[1641434075241,0.42572838,3508.9,3508.7,0.132394]
[1641434075844,0.42572838,3508.9,3508.7,1.06532942]
[1641434076044,1.75670172,3509.4,3509.1,0.42917336]
[1641434076244,1.75670172,3509.4,3509.3,4.00958]
[1641434076447,5.63979445,3509.4,3509.3,4.00958]
[1641434076645,3.65310173,3509.4,3509.3,4.00958]
[1641434077547,3.65310173,3509.4,3509.3,5.43321345]
[1641434078147,3.65310173,3509.4,3509.3,5.43316279]
[1641434078349,0.60419189,3509.4,3509.3,5.43316279]
[1641434079050,2.10419189,3509.4,3509.3,4.00958]
[1641434079247,2.33418289,3509.4,3507.5,1.23161772]
[1641434079448,2.33418289,3509.4,3508.7,0.20147078]
[1641434079449,0.229991,3509.4,3508.7,0.20147078]
[1641434079650,1.5,3508.8,3508.7,0.20147078]
[1641434080056,1.5,3508.8,3508.7,1.62547522]
[1641434080250,3.50479,3508.8,3508.7,2.53406456]
[1641434081051,3.50479,3508.8,3508.7,2.33259378]
[1641434081052,3.734781,3508.8,3508.7,2.33259378]
[1641434081450,3.50479,3508.8,3508.7,2.33259378]
[1641434082052,2.60898189,3508.8,3508.7,0.90858934]
[1641434082252,1.5,3509.0,3508.9,0.45638537]
[1641434082453,2.00479,3509.2,3508.9,1.41097937]
[1641434082655,2.00479,3509.2,3508.9,0.954594]
[1641434083651,2.00479,3509.2,3509.1,1.42370439]
[1641434083852,2.79810173,3510.3,3509.1,5.55609839]
[1641434084052,1.5,3510.0,3509.1,0.132394]
[1641434084256,2.79810173,3510.3,3509.9,2.00479]
[1641434084453,4.0184119,3510.5,3510.2,1.42343284]
[1641434084654,1.5,3510.3,3510.2,1.42343284]
[1641434084852,1.5,3510.4,3510.2,1.33096436]
[1641434085352,1.5,3510.3,3510.2,1.91016436]
[1641434085952,1.5,3510.3,3510.2,3.33364785]
[1641434086352,1.729991,3510.3,3510.2,3.33364785]
[1641434086554,1.5,3510.3,3510.2,1.91016436]
[1641434086756,1.5,3510.3,3510.2,1.33096436]
[1641434087256,1.729991,3510.3,3510.2,2.75444988]
[1641434087654,2.527591,3510.3,3509.3,1.42393753]
[1641434087852,2.527591,3510.3,3509.1,1.93369419]
[1641434087853,1.5,3509.5,3509.1,2.78859813]
[1641434088054,1.5,3509.2,3509.1,2.78859813]
[1641434088256,3.50479,3509.2,3509.1,2.78859813]
[1641434088455,2.00479,3509.2,3509.1,3.98809886]
[1641434088857,2.00479,3509.2,3509.1,2.05440467]
[1641434089056,2.00479,3509.2,3509.1,3.47825907]
[1641434089657,2.234781,3509.2,3509.1,3.34586507]
[1641434089858,2.00479,3509.2,3509.1,1.92201067]
[1641434090058,2.00479,3509.2,3509.1,3.34580831]
[1641434090259,2.00479,3509.2,3509.1,1.92201067]
[1641434090458,2.00479,3509.2,3509.1,3.34580831]
[1641434091259,2.00479,3509.2,3509.1,1.92201067]
[1641434091960,2.234781,3509.2,3509.1,1.92201067]
[1641434092162,2.00479,3509.2,3509.1,1.92201067]
[1641434092360,1.5,3509.3,3509.1,1.92201067]
[1641434092660,2.00479,3510.1,3509.1,2.09299036]
[1641434092862,66.4485779,3518.4,3510.0,0.20975882]
[1641434092863,1.29024118,3511.1,3510.0,0.20975882]
[1641434093063,32.6253,3511.9,3510.0,0.20975882]
[1641434093064,1.29024118,3511.8,3510.6,0.20975882]
[1641434093264,1.29024118,3511.8,3510.2,0.20975882]
[1641434093466,1.29024118,3511.8,3509.8,1.02568067]
[1641434093762,1.29024118,3511.8,3510.3,0.20975882]
[1641434093963,1.29024118,3511.8,3510.1,1.34167142]
[1641434094264,2.00479,3511.2,3510.4,2.00479]
[1641434094668,2.00479,3511.2,3510.5,0.132394]
[1641434094870,2.00479,3511.2,3510.7,0.20975882]
[1641434095062,2.00479,3511.2,3510.5,0.132394]
[1641434095063,2.00479,3511.2,3510.9,0.20975882]
[1641434095264,0.229991,3511.1,3510.9,0.5345]
[1641434095463,2.00479,3511.6,3510.9,0.5345]
[1641434095664,2.00479,3511.6,3511.5,0.20975882]
[1641434095865,2.00479,3511.6,3511.0,1.23450465]
[1641434096065,29.9472,3512.3,3511.0,1.02474583]
[1641434096265,2.00479,3512.3,3511.4,2.00479]
[1641434096467,2.00479,3512.3,3511.5,0.132394]
[1641434096867,1.29024118,3511.9,3511.4,3.42770837]
[1641434097065,2.00479,3512.3,3511.1,2.00479]
[1641434097266,2.65149,3512.3,3509.7,1.64255001]
[1641434097565,3.94173118,3512.3,3511.4,1.42309252]
[1641434097766,3.94173118,3512.3,3510.2,0.20975882]
[1641434098165,2.65149,3512.3,3510.8,1.21632499]
[1641434098365,2.00479,3511.2,3510.8,1.21632499]
[1641434098566,2.00479,3511.2,3510.9,1.32112896]
[1641434100168,2.00479,3512.3,3511.1,1.42306012]
[1641434100368,2.00479,3511.8,3511.3,1.53834206]
[1641434101370,2.00479,3511.8,3511.7,1.42296292]
[1641434101570,2.00479,3511.8,3511.7,0.90811107]
[1641434101770,2.00479,3511.8,3511.7,2.33101325]
[1641434101974,2.00479,3511.8,3511.7,0.90811107]
[1641434102174,2.00479,3512.3,3511.7,1.11786989]
[1641434102373,2.00479,3512.3,3511.7,0.90811107]
[1641434102973,3.29503118,3512.3,3511.7,0.90811107]
[1641434103373,2.00479,3512.3,3511.7,0.90811107]
[1641434103573,2.00479,3512.3,3511.8,1.47118106]
[1641434103775,31.72714118,3513.3,3512.2,0.20975882]
[1641434104073,32.5777,3513.4,3513.0,1.42242452]
[1641434104274,2.00479,3513.1,3512.8,0.97963701]
[1641434104873,2.00479,3513.1,3512.9,0.93552642]
[1641434105574,0.229991,3513.0,3512.9,0.93552642]
[1641434105773,1.29024118,3513.0,3512.9,0.93552642]
[1641434106274,2.00479,3513.1,3512.9,0.93552642]
[1641434106474,2.00479,3513.1,3512.2,2.00479]
[1641434106874,1.29024118,3512.3,3512.2,1.01035509]
[1641434107077,2.18073218,3512.3,3511.8,0.20975882]
[1641434107676,0.6605,3512.3,3512.2,1.14809696]
[1641434107875,2.00479,3513.1,3512.2,1.14809696]
[1641434108275,2.00479,3513.1,3512.7,0.93070858]
[1641434108975,2.00479,3513.1,3512.7,1.68667003]
[1641434110278,1.50858963,3513.8,3513.2,0.93957774]
[1641434110476,0.91378963,3513.8,3513.7,0.20975882]
[1641434110676,0.91378963,3513.8,3513.7,1.63183138]
[1641434111078,0.91378963,3513.8,3513.7,0.20975882]
[1641434111477,0.91378963,3513.8,3513.4,1.19537197]
[1641434111980,0.91378963,3513.8,3513.4,1.06297797]
[1641434112180,1.24601244,3514.0,3513.4,1.06297797]
[1641434112379,2.00479,3514.0,3513.4,1.06297797]
[1641434113178,2.00479,3514.0,3513.6,1.42216559]
[1641434113378,2.00479,3514.0,3513.4,1.06297797]
[1641434114379,2.00479,3513.5,3513.4,1.06297797]
[1641434114580,2.234781,3513.5,3513.4,1.06297797]
[1641434114783,2.00479,3513.5,3513.4,1.06297797]
[1641434115882,2.00479,3513.5,3511.6,0.434]
[1641434116083,1.29024118,3512.8,3512.0,1.5487495]
[1641434116283,0.5195,3512.8,3512.0,1.5487495]
[1641434116483,2.00479,3512.1,3512.0,1.5487495]
[1641434116682,2.234781,3512.1,3512.0,1.5487495]
[1641434116885,2.234781,3512.1,3511.3,2.00479]
[1641434117083,2.234781,3512.1,3511.3,14.17479]
[1641434117287,2.00479,3512.1,3512.0,0.20975882]
[1641434117483,0.91378963,3513.4,3512.2,13.40561687]
[1641434117684,0.91378963,3513.4,3512.9,1.23538573]
[1641434117883,0.91378963,3513.4,3513.0,1.03278399]
[1641434119190,3.29503118,3513.6,3512.8,2.00479]
[1641434119588,1.29024118,3512.9,3511.6,1.48301956]
[1641434119790,3.82393118,3513.6,3511.6,1.48301956]
[1641434119990,1.29024118,3512.9,3511.6,1.48301956]
[1641434120190,1.29024118,3512.3,3511.6,1.48301956]
[1641434120488,2.00479,3512.1,3511.4,2.22726511]
[1641434120689,2.00479,3512.1,3511.4,1.42307227]
[1641434121091,1.29024118,3511.8,3511.0,2.00479]
[1641434121293,2.00479,3512.1,3511.0,2.00479]
[1641434121491,2.00479,3512.1,3511.7,0.20975882]
[1641434121691,2.00479,3512.1,3511.0,2.00479]
[1641434121891,2.00479,3512.1,3511.7,0.20975882]
[1641434122394,2.00479,3512.0,3511.1,13.1788005]
[1641434122893,2.00479,3512.0,3511.2,0.20975882]
[1641434123292,2.00479,3512.0,3511.1,1.0088005]
[1641434123591,2.00479,3512.0,3511.3,0.8543797]
[1641434123792,2.00479,3512.0,3511.3,13.23413852]
[1641434124592,1.29024118,3511.6,3511.3,0.8543797]
[1641434124794,1.52023218,3511.5,3511.1,2.43201454]
[1641434124996,1.52023218,3511.5,3510.9,1.64872873]
[1641434125394,0.229991,3511.5,3510.9,1.64872873]
[1641434125794,0.229991,3511.5,3511.4,0.20975882]
[1641434125994,0.229991,3511.5,3510.9,1.64872873]
[1641434126394,2.00479,3511.1,3510.9,1.64872873]
[1641434126594,0.229991,3511.0,3510.9,1.64872873]
[1641434126794,2.00479,3511.1,3510.9,1.64872873]
[1641434126994,2.00479,3511.1,3511.0,0.20975882]
[1641434127194,2.00479,3511.1,3511.0,12.37975882]
[1641434127597,1.1503797,3511.1,3511.0,12.37975882]
[1641434127796,2.00479,3512.0,3511.0,13.24182085]
[1641434127996,1.29024118,3511.9,3511.1,0.20975882]
[1641434128195,2.00479,3512.0,3511.4,0.20975882]
[1641434128397,2.00479,3511.6,3511.4,0.20975882]
[1641434128696,0.229991,3511.5,3511.0,0.86206203]
[1641434128899,0.229991,3511.5,3511.3,0.20975882]
[1641434129100,2.00479,3511.6,3511.3,0.20975882]
[1641434129301,2.00479,3511.6,3511.5,0.20975882]
[1641434129700,2.00479,3511.6,3511.0,0.86206203]
[1641434129901,2.00479,3511.6,3511.1,0.132394]
[1641434130103,2.00479,3511.6,3511.3,0.20975882]
[1641434130302,2.00479,3511.6,3511.1,0.132394]
[1641434130602,2.00479,3511.6,3511.5,0.20975882]
[1641434130803,2.234781,3511.6,3511.5,0.20975882]
[1641434131004,2.00479,3512.0,3511.5,1.84215282]
[1641434131201,0.91378963,3513.0,3511.9,0.20975882]
[1641434131501,0.91378963,3513.0,3511.6,1.02516495]
[1641434131502,0.91378963,3513.0,3511.6,13.19516495]
[1641434131702,0.91378963,3513.0,3512.6,0.20975882]
[1641434132003,0.91378963,3513.0,3511.6,13.19516495]
[1641434132004,0.91378963,3513.1,3512.3,0.20975882]
[1641434132301,0.91378963,3513.1,3511.9,0.20975882]
[1641434132503,2.00479,3512.3,3511.9,0.20975882]
[1641434132704,1.29024118,3512.2,3511.5,3.42781164]
[1641434132903,2.00479,3512.3,3511.7,1.09302937]
[1641434133102,1.29024118,3512.2,3511.7,1.09302937]
[1641434133302,1.29024118,3511.8,3511.3,0.91078732]
[1641434133503,1.29024118,3511.8,3510.6,0.91172888]
[1641434133703,33.96924118,3512.2,3510.6,0.91172888]
[1641434133905,1.29024118,3512.0,3510.9,1.15551558]
[1641434134304,1.29024118,3511.1,3510.9,1.15551558]
[1641434134505,0.229991,3511.0,3510.6,0.91172888]
[1641434135309,0.229991,3511.0,3510.7,0.20975882]
[1641434135508,0.229991,3511.0,3510.6,0.91172888]
[1641434136510,2.00479,3510.7,3510.6,0.91172888]
[1641434136710,2.234781,3510.7,3510.6,0.91172888]
[1641434136910,2.00479,3510.7,3510.6,0.91172888]
[1641434137112,2.00479,3510.7,3510.6,1.1214877]
[1641434138310,2.00479,3510.7,3510.6,0.91172888]
[1641434139112,2.00479,3510.7,3510.6,13.2914877]
[1641434139413,2.00479,3510.7,3510.6,13.4238817]
[1641434139611,2.00479,3510.7,3510.6,14.84714031]
[1641434139811,2.00479,3511.1,3510.6,1.2538817]
[1641434140011,2.00479,3511.1,3510.9,1.42325861]
[1641434140413,2.00479,3511.1,3510.9,2.34259232]
[1641434141012,0.229991,3511.0,3510.9,2.34259232]
[1641434141212,2.00479,3511.1,3510.9,2.55235114]
[1641434141614,2.00479,3511.1,3510.9,2.68474514]
[1641434141917,31.0471,3512.6,3510.9,1.26148653]
[1641434142114,30.5178,3513.0,3511.6,0.20975882]
[1641434142315,30.5178,3513.0,3511.4,1.23294279]
[1641434142614,2.00479,3511.7,3511.5,0.20975882]
[1641434143616,2.00479,3511.7,3511.4,1.23294279]
[1641434143817,0.229991,3511.6,3511.4,1.23294279]
[1641434144216,2.00479,3511.7,3511.4,1.23294279]
[1641434144818,2.00479,3512.0,3511.6,0.20975882]
[1641434145118,2.00479,3512.0,3511.9,14.76552454]
[1641434145521,31.76381244,3513.0,3511.9,14.765563]
[1641434145720,1.24601244,3513.0,3511.9,2.595563]
[1641434146521,2.00479,3512.6,3511.9,2.595563]
[1641434146724,2.00479,3512.6,3511.9,0.96302752]
[1641434146921,2.00479,3512.6,3512.0,1.12750679]
[1641434147121,1.29024118,3512.4,3512.0,1.12750679]
[1641434147323,2.00479,3512.6,3512.0,1.12750679]
[1641434149225,2.00479,3512.6,3512.5,0.20975882]
[1641434149425,2.00479,3512.6,3512.5,1.63238975]
[1641434149625,2.00479,3512.6,3512.5,0.20975882]
[1641434149827,2.00479,3512.6,3512.5,0.34215282]
[1641434150027,1.1507669,3512.6,3512.5,1.76470685]
[1641434150228,1.1507669,3512.6,3512.5,13.93470685]
[1641434150428,1.1507669,3512.6,3512.5,1.76470685]
[1641434150632,1.1507669,3512.6,3512.5,13.93470685]
[1641434151040,1.1507669,3512.6,3512.5,1.76470685]
[1641434151235,1.1507669,3512.6,3512.5,1.42255403]
[1641434151438,1.1507669,3512.6,3512.3,0.132394]
[1641434151837,1.1507669,3512.6,3512.3,0.34215282]
[1641434152238,0.229991,3512.5,3512.3,0.132394]
[1641434152437,1.1507669,3512.6,3512.3,0.132394]
[1641434155045,1.1507669,3512.6,3512.5,0.20975882]
[1641434155446,1.3807579,3512.6,3512.5,0.20975882]
[1641434155748,1.1507669,3512.6,3512.5,0.20975882]
[1641434156345,1.1507669,3512.6,3512.4,0.132394]
[1641434156545,0.91378963,3512.7,3512.5,13.67]
[1641434156746,1.24601244,3513.0,3512.7,12.34444626]
[1641434156747,0.93895279,3512.8,3512.7,12.34444626]
[1641434156946,0.93895279,3512.8,3512.7,12.17]
[1641434157447,0.93895279,3512.8,3512.7,13.67]
[1641434157646,5.279e-05,3512.8,3512.7,16.66904118]
[1641434157848,1.24601244,3513.0,3512.8,0.132394]
[1641434158047,1.24601244,3513.0,3512.9,12.37975882]
[1641434158249,1.24601244,3513.0,3512.9,13.87975882]
[1641434158648,0.93962731,3513.5,3512.9,17.88933882]
[1641434158848,1.82168807,3514.2,3513.4,13.87975882]
[1641434159047,1.82168807,3514.2,3514.1,1.70975882]
[1641434159248,1.82168807,3514.2,3514.1,14.72125882]
[1641434159449,1.82168807,3514.2,3514.1,13.35365282]
[1641434159648,1.82168807,3514.2,3514.1,14.21595633]
[1641434160451,3.03614678,3514.7,3514.1,14.21595633]
[1641434160652,2.00479,3515.2,3514.5,0.20975882]
[1641434160853,1.29024118,3515.1,3514.5,0.20975882]
[1641434161052,2.00479,3515.2,3514.5,0.20975882]
[1641434161751,2.00479,3515.2,3514.6,0.20975882]
[1641434161951,2.00479,3515.2,3514.3,2.00479]
[1641434162153,0.60348094,3515.0,3514.4,0.20975882]
[1641434162351,0.60348094,3515.0,3514.5,0.132394]
[1641434162551,2.00479,3514.8,3514.5,0.132394]
[1641434164358,2.00479,3514.8,3514.5,0.34215282]
[1641434164556,2.00479,3515.2,3514.5,0.132394]
[1641434164756,2.00479,3515.2,3515.1,0.20975882]
[1641434164956,2.00479,3515.2,3515.1,1.08749781]
[1641434165357,2.00479,3515.2,3515.1,0.87773899]
[1641434165960,2.234781,3515.2,3515.1,1.08749781]
[1641434166158,2.00479,3515.2,3515.1,0.87773899]
[1641434166358,2.00479,3515.2,3515.1,1.21989181]
[1641434166560,2.00479,3515.2,3515.1,1.01013299]
[1641434166758,1.82168807,3515.3,3515.2,12.17]
[1641434166959,1.82168807,3515.3,3515.2,13.67]
[1641434167759,1.82168807,3515.3,3515.2,12.17]
[1641434167960,1.82168807,3515.9,3515.2,12.17]
[1641434168162,1.82168807,3515.9,3515.8,0.20975882]
[1641434168762,1.82168807,3515.9,3515.8,0.34215282]
[1641434169362,2.05167907,3515.9,3515.8,0.20975882]
[1641434169562,0.229991,3515.9,3515.8,0.20975882]
[1641434169963,2.626216,3516.2,3515.8,0.20975882]
[1641434170363,2.626216,3516.2,3516.1,0.20975882]
[1641434170562,2.856207,3516.2,3516.1,0.20975882]
[1641434170762,2.626216,3516.2,3516.1,0.20975882]
[1641434171363,1.82168807,3516.2,3516.1,0.20975882]
[1641434171563,2.05167907,3516.2,3516.1,0.20975882]
[1641434171863,2.00479,3516.3,3515.9,12.17]
[1641434172063,2.00479,3516.3,3515.4,2.00479]
[1641434172265,0.287832,3515.9,3515.4,2.00479]
[1641434172464,2.00479,3516.3,3515.5,0.132394]
[1641434176770,2.00479,3516.3,3515.6,1.36273589]
[1641434177169,2.00479,3516.3,3515.7,0.132394]
[1641434177574,2.00479,3516.3,3515.7,12.302394]
[1641434178774,2.00479,3516.3,3515.9,12.17]
[1641434178976,2.00479,3516.3,3516.0,0.132394]
[1641434179574,2.00479,3516.3,3516.1,1.42115907]
[1641434179774,2.00479,3516.3,3516.2,0.91142653]
[1641434181876,2.00479,3516.3,3516.2,0.77903253]
[1641434182776,2.234781,3516.3,3516.2,0.77903253]
[1641434183174,2.234781,3516.3,3514.9,14.17479]
[1641434183175,2.234781,3516.3,3514.9,2.00479]
[1641434183377,2.974281,3516.3,3514.9,2.00479]
[1641434183780,4.474281,3516.3,3514.9,2.00479]
[1641434183978,4.474281,3516.3,3515.1,12.17]
[1641434184176,2.974281,3516.3,3515.1,12.17]
[1641434184777,2.00479,3515.9,3515.1,12.17]
[1641434185178,2.00479,3515.9,3515.2,0.132394]
[1641434185578,1.5,3515.6,3515.0,1.3825517]
[1641434186782,2.00479,3515.1,3515.0,1.3825517]
[1641434186978,2.234781,3515.1,3515.0,1.3825517]
[1641434187778,2.00479,3515.1,3515.0,1.3825517]
[1641434188178,2.00479,3515.9,3515.0,1.3825517]
[1641434188380,2.00479,3515.9,3515.0,2.1274517]
[1641434188780,2.00479,3515.9,3515.4,1.42147017]
[1641434188979,2.00479,3515.9,3515.2,2.00479]
[1641434190183,2.00479,3515.9,3515.6,1.42138329]
[1641434190382,0.229991,3515.8,3515.7,0.84680095]
[1641434190783,2.00479,3516.3,3515.7,0.84680095]
[1641434190983,12.17,3518.6,3515.8,12.17]
[1641434191182,1.5,3516.9,3515.7,1.55480095]
[1641434191383,1.5,3516.9,3515.7,0.84680095]
[1641434191784,1.5,3517.1,3515.7,0.84680095]
[1641434191983,1.5,3517.1,3515.9,1.42123582]
[1641434192390,1.5,3517.1,3515.7,0.84680095]
[1641434192790,2.00479,3516.0,3515.7,0.84680095]
[1641434192990,0.229991,3515.9,3515.7,0.84680095]
[1641434194091,2.00479,3516.0,3515.7,0.84680095]
[1641434195294,2.00479,3516.0,3515.7,2.26812767]
[1641434195796,2.00479,3516.0,3515.3,13.67]
[1641434195996,1.5,3517.3,3515.2,2.00479]
[1641434195997,1.5,3517.3,3515.5,12.17]
[1641434196196,1.5,3517.3,3515.5,12.9192]
[1641434196599,1.5,3517.6,3515.5,12.9192]
[1641434196800,2.00479,3516.9,3516.1,2.00479]
[1641434197198,2.00479,3516.9,3516.2,0.132394]
[1641434199201,2.00479,3516.9,3516.1,2.00479]
[1641434199403,2.00479,3516.9,3516.5,1.42097732]
[1641434199600,2.00479,3516.9,3516.3,0.132394]
[1641434199801,2.00479,3517.2,3516.2,12.17]
[1641434200000,2.00479,3517.2,3517.1,1.42068662]